[Event "*** Titled Tuesday Blitz"]
[Site "Chess.com"]
[Date "2020.10.20"]
[Round "2"]
[White "chito89"]
[Black "PLAYER_2006_M"]
[Result "1/2-1/2"]
[WhiteElo "2809"]
[BlackElo "2525"]
[TimeControl "180+1"]
[EndTime "10:18:49 PDT"]
[Termination "Game drawn by repetition"]

1. c4 {[%clk 0:02:59.2]} 1... e5 {[%clk 0:02:59.9]} 2. Nc3 {[%clk 0:02:59.5]}
2... Nc6 {[%clk 0:03:00.1]} 3. Nf3 {[%clk 0:02:59.7]} 3... Nf6 {[%clk
0:02:57.7]} 4. e3 {[%clk 0:03:00.2]} 4... Bb4 {[%clk 0:02:46]} 5. Qc2 {[%clk
0:02:59.2]} 5... O-O {[%clk 0:02:43.7]} 6. Nd5 {[%clk 0:02:48.5]} 6... Bc5
{[%clk 0:02:37.3]} 7. Ng5 {[%clk 0:02:32.8]} 7... g6 {[%clk 0:02:21.2]} 8. Nxf6+
{[%clk 0:02:33.2]} 8... Qxf6 {[%clk 0:02:22.1]} 9. Ne4 {[%clk 0:02:33.9]} 9...
Qe7 {[%clk 0:02:22.7]} 10. a3 {[%clk 0:02:32.8]} 10... a5 {[%clk 0:02:18.2]} 11.
b3 {[%clk 0:02:24.3]} 11... Bb6 {[%clk 0:02:10.9]} 12. Bb2 {[%clk 0:02:23.2]}
12... d6 {[%clk 0:02:08.6]} 13. h4 {[%clk 0:02:18.9]} 13... f5 {[%clk
0:02:07.9]} 14. Nc3 {[%clk 0:02:08.9]} 14... Be6 {[%clk 0:01:57.9]} 15. Nd5
{[%clk 0:02:08.1]} 15... Bxd5 {[%clk 0:01:42.9]} 16. cxd5 {[%clk 0:02:09]} 16...
Nd8 {[%clk 0:01:41.8]} 17. h5 {[%clk 0:02:09.6]} 17... Nf7 {[%clk 0:01:40.6]}
18. hxg6 {[%clk 0:02:07.7]} 18... hxg6 {[%clk 0:01:41.5]} 19. Bc4 {[%clk
0:01:48.2]} 19... Kg7 {[%clk 0:01:38.4]} 20. g4 {[%clk 0:01:31.6]} 20... Rh8
{[%clk 0:01:24.7]} 21. O-O-O {[%clk 0:01:30.6]} 21... fxg4 {[%clk 0:01:14.6]}
22. Rhg1 {[%clk 0:01:17.2]} 22... Rh4 {[%clk 0:01:07.1]} 23. Rg3 {[%clk
0:01:06.8]} 23... Kh7 {[%clk 0:00:44.8]} 24. Rdg1 {[%clk 0:01:05.4]} 24... Nh6
{[%clk 0:00:43.8]} 25. f3 {[%clk 0:00:58.4]} 25... Rf8 {[%clk 0:00:38.2]} 26.
fxg4 {[%clk 0:00:55.1]} 26... Rh2 {[%clk 0:00:32.9]} 27. Qe4 {[%clk 0:00:49.8]}
27... Rff2 {[%clk 0:00:29.7]} 28. Bc3 {[%clk 0:00:50.2]} 28... Qh4 {[%clk
0:00:23.8]} 29. Bd3 {[%clk 0:00:49.5]} 29... Qg5 {[%clk 0:00:20.7]} 30. Rf3
{[%clk 0:00:43.2]} 30... Rxf3 {[%clk 0:00:15.8]} 31. Qxf3 {[%clk 0:00:44.1]}
31... Kg7 {[%clk 0:00:15.5]} 32. Rf1 {[%clk 0:00:37.7]} 32... Qe7 {[%clk
0:00:14.5]} 33. Qg3 {[%clk 0:00:31.2]} 33... Qh4 {[%clk 0:00:10.7]} 34. Bxe5+
{[%clk 0:00:25.6]} 34... dxe5 {[%clk 0:00:11.6]} 35. Qxe5+ {[%clk 0:00:26.1]}
35... Kh7 {[%clk 0:00:12.5]} 36. Qe6 {[%clk 0:00:21.2]} 36... Qg5 {[%clk
0:00:06]} 37. Qd7+ {[%clk 0:00:18.1]} 37... Kg8 {[%clk 0:00:06.4]} 38. Qe8+
{[%clk 0:00:16.1]} 38... Kg7 {[%clk 0:00:04.8]} 39. Qf8+ {[%clk 0:00:14.2]}
39... Kh7 {[%clk 0:00:05]} 40. Rf6 {[%clk 0:00:11.7]} 40... Nf5 {[%clk
0:00:03.1]} 41. gxf5 {[%clk 0:00:09.9]} 41... Qg1+ {[%clk 0:00:03]} 42. Kc2
{[%clk 0:00:10.5]} 42... Rxd2+ {[%clk 0:00:03.7]} 43. Kxd2 {[%clk 0:00:11.2]}
43... Qxe3+ {[%clk 0:00:04.6]} 44. Kc2 {[%clk 0:00:11.8]} 44... Qf2+ {[%clk
0:00:04.9]} 45. Kd1 {[%clk 0:00:12.5]} 45... Qg1+ {[%clk 0:00:04.9]} 46. Kd2
{[%clk 0:00:12.7]} 46... Qe3+ {[%clk 0:00:04.8]} 47. Kc2 {[%clk 0:00:12.2]}
47... Qf2+ {[%clk 0:00:04.6]} 48. Kd1 {[%clk 0:00:11.4]} 48... Qg1+ {[%clk
0:00:04.5]} 49. Kc2 {[%clk 0:00:07.6]} 49... Qf2+ {[%clk 0:00:04.4]} 1/2-1/2

[Event "*** Titled Tuesday Blitz"]
[Site "Chess.com"]
[Date "2020.10.20"]
[Round "2"]
[White "TorFredrikKaasen"]
[Black "AccioChess"]
[Result "1-0"]
[WhiteElo "2711"]
[BlackElo "2455"]
[TimeControl "180+1"]
[EndTime "10:18:51 PDT"]
[Termination "TorFredrikKaasen won on time"]

1. d4 {[%clk 0:03:00.9]} 1... Nf6 {[%clk 0:02:59.6]} 2. c4 {[%clk 0:03:00.5]}
2... g6 {[%clk 0:02:57.6]} 3. Nc3 {[%clk 0:03:00.2]} 3... d5 {[%clk 0:02:56.6]}
4. Nf3 {[%clk 0:02:57.1]} 4... Bg7 {[%clk 0:02:56.4]} 5. h4 {[%clk 0:02:57.7]}
5... c5 {[%clk 0:02:42.2]} 6. cxd5 {[%clk 0:02:52.4]} 6... Nxd5 {[%clk
0:02:40.1]} 7. h5 {[%clk 0:02:49.9]} 7... cxd4 {[%clk 0:02:36.4]} 8. Nxd4 {[%clk
0:02:30.2]} 8... Nxc3 {[%clk 0:02:17.6]} 9. bxc3 {[%clk 0:02:28.6]} 9... Nc6
{[%clk 0:02:18.1]} 10. Be3 {[%clk 0:02:05.8]} 10... Qa5 {[%clk 0:02:10.2]} 11.
Bd2 {[%clk 0:01:40.7]} 11... Bd7 {[%clk 0:02:02.9]} 12. e3 {[%clk 0:01:29.6]}
12... Rc8 {[%clk 0:01:02.2]} 13. Rb1 {[%clk 0:01:24.6]} 13... Qc7 {[%clk
0:00:50.6]} 14. Qb3 {[%clk 0:00:47.9]} 14... Na5 {[%clk 0:00:46.8]} 15. Qb4
{[%clk 0:00:32.9]} 15... a6 {[%clk 0:00:20.4]} 16. a4 {[%clk 0:00:18.8]} 16...
Nc6 {[%clk 0:00:16.2]} 17. Qxb7 {[%clk 0:00:16.6]} 17... Qxb7 {[%clk 0:00:15.1]}
18. Rxb7 {[%clk 0:00:17.5]} 18... Na5 {[%clk 0:00:14.6]} 19. Rb6 {[%clk
0:00:12]} 19... O-O {[%clk 0:00:10.6]} 20. Bxa6 {[%clk 0:00:11.8]} 20... Ra8
{[%clk 0:00:09.8]} 21. Bb5 {[%clk 0:00:11.8]} 21... Bxb5 {[%clk 0:00:09.8]} 22.
axb5 {[%clk 0:00:08.6]} 22... Nc4 {[%clk 0:00:10]} 23. Ra6 {[%clk 0:00:06.8]}
23... Rxa6 {[%clk 0:00:09.2]} 24. bxa6 {[%clk 0:00:07.7]} 24... Ra8 {[%clk
0:00:09.7]} 25. Bc1 {[%clk 0:00:05.1]} 25... Rxa6 {[%clk 0:00:09.6]} 26. hxg6
{[%clk 0:00:05.7]} 26... hxg6 {[%clk 0:00:09.4]} 27. O-O {[%clk 0:00:06.4]}
27... e5 {[%clk 0:00:08.1]} 28. Nb3 {[%clk 0:00:04.7]} 28... Rb6 {[%clk
0:00:08.1]} 29. Nd2 {[%clk 0:00:05.1]} 29... Nxd2 {[%clk 0:00:04.2]} 30. Bxd2
{[%clk 0:00:06]} 30... Rb2 {[%clk 0:00:04.3]} 31. Rd1 {[%clk 0:00:06.7]} 31...
e4 {[%clk 0:00:04.4]} 32. Be1 {[%clk 0:00:07.3]} 32... Rc2 {[%clk 0:00:04.7]}
33. Kf1 {[%clk 0:00:06]} 33... Bxc3 {[%clk 0:00:04.5]} 34. Bxc3 {[%clk
0:00:06.9]} 34... Rxc3 {[%clk 0:00:05]} 35. Rd4 {[%clk 0:00:06.6]} 35... f5
{[%clk 0:00:04.7]} 36. Rd7 {[%clk 0:00:07.2]} 36... Rc2 {[%clk 0:00:04.2]} 37.
g3 {[%clk 0:00:07.3]} 37... Rc1+ {[%clk 0:00:04.2]} 38. Kg2 {[%clk 0:00:07.5]}
38... Rc2 {[%clk 0:00:04.1]} 39. g4 {[%clk 0:00:07.3]} 39... Ra2 {[%clk
0:00:03.3]} 40. gxf5 {[%clk 0:00:06.8]} 40... gxf5 {[%clk 0:00:04.2]} 41. Rd5
{[%clk 0:00:07.5]} 41... Kf7 {[%clk 0:00:03.3]} 42. Rxf5+ {[%clk 0:00:07.5]}
42... Ke6 {[%clk 0:00:03.7]} 43. Rb5 {[%clk 0:00:08.2]} 43... Rc2 {[%clk
0:00:03.2]} 44. Kg3 {[%clk 0:00:08.7]} 44... Ra2 {[%clk 0:00:02.7]} 45. Rh5
{[%clk 0:00:08.3]} 45... Rc2 {[%clk 0:00:01.6]} 46. Rh4 {[%clk 0:00:08.7]} 46...
Kf5 {[%clk 0:00:00.8]} 47. Rh8 {[%clk 0:00:09.2]} 1-0

[Event "*** Titled Tuesday Blitz"]
[Site "Chess.com"]
[Date "2020.10.20"]
[Round "2"]
[White "AndrewMaco"]
[Black "Bigfish1995"]
[Result "0-1"]
[WhiteElo "2619"]
[BlackElo "3051"]
[TimeControl "180+1"]
[EndTime "10:18:52 PDT"]
[Termination "Bigfish1995 won by resignation"]

1. e4 {[%clk 0:03:00.9]} 1... c5 {[%clk 0:02:56.5]} 2. Nf3 {[%clk 0:03:00.7]}
2... d6 {[%clk 0:02:56.9]} 3. d4 {[%clk 0:03:00.8]} 3... cxd4 {[%clk 0:02:57.2]}
4. Nxd4 {[%clk 0:03:01.7]} 4... Nf6 {[%clk 0:02:57.5]} 5. Nc3 {[%clk 0:03:00.5]}
5... a6 {[%clk 0:02:57.6]} 6. f3 {[%clk 0:03:00]} 6... e6 {[%clk 0:02:55.1]} 7.
Be3 {[%clk 0:02:59.2]} 7... Qc7 {[%clk 0:02:54.8]} 8. Qd2 {[%clk 0:02:59.1]}
8... h5 {[%clk 0:02:54.8]} 9. a4 {[%clk 0:02:53.9]} 9... b6 {[%clk 0:02:52]} 10.
Be2 {[%clk 0:02:46.7]} 10... Nbd7 {[%clk 0:02:51.5]} 11. O-O {[%clk 0:02:46.7]}
11... Bb7 {[%clk 0:02:51.3]} 12. Rfd1 {[%clk 0:02:39.9]} 12... Be7 {[%clk
0:02:48.3]} 13. Bf1 {[%clk 0:02:38.8]} 13... h4 {[%clk 0:02:44.6]} 14. Qf2
{[%clk 0:02:23.9]} 14... Kf8 {[%clk 0:02:04.2]} 15. Bg5 {[%clk 0:02:13.3]} 15...
Kg8 {[%clk 0:02:00.4]} 16. Re1 {[%clk 0:01:48.7]} 16... Rh5 {[%clk 0:01:45]} 17.
Be3 {[%clk 0:01:46.7]} 17... d5 {[%clk 0:01:27.8]} 18. exd5 {[%clk 0:01:39.3]}
18... Bxd5 {[%clk 0:01:28]} 19. Be2 {[%clk 0:01:27.3]} 19... Bb7 {[%clk
0:01:20.6]} 20. f4 {[%clk 0:01:19.2]} 20... Rc5 {[%clk 0:01:18]} 21. Bf3 {[%clk
0:01:10.6]} 21... Rc4 {[%clk 0:01:13.4]} 22. Rad1 {[%clk 0:01:07.2]} 22... h3
{[%clk 0:01:05]} 23. gxh3 {[%clk 0:01:01.2]} 23... Nc5 {[%clk 0:01:04.5]} 24.
Bxb7 {[%clk 0:00:53.3]} 24... Qxb7 {[%clk 0:01:04.3]} 25. Qg2 {[%clk 0:00:53.9]}
25... Qxg2+ {[%clk 0:00:58.9]} 26. Kxg2 {[%clk 0:00:54.8]} 26... Rc8 {[%clk
0:00:58.5]} 27. Ra1 {[%clk 0:00:37.1]} 27... g6 {[%clk 0:00:58]} 28. Kf3 {[%clk
0:00:35.6]} 28... Kg7 {[%clk 0:00:45.6]} 29. Nde2 {[%clk 0:00:35.2]} 29... Ncd7
{[%clk 0:00:40.1]} 30. Red1 {[%clk 0:00:30]} 30... Rh8 {[%clk 0:00:39.2]} 31.
Kg2 {[%clk 0:00:26.4]} 31... Bc5 {[%clk 0:00:39.2]} 32. Bxc5 {[%clk 0:00:21.6]}
32... Rxc5 {[%clk 0:00:35.3]} 33. Rd3 {[%clk 0:00:20.2]} 33... Rch5 {[%clk
0:00:34.5]} 34. Rad1 {[%clk 0:00:19.8]} 34... Nc5 {[%clk 0:00:34.3]} 35. Re3
{[%clk 0:00:19.9]} 35... Rb8 {[%clk 0:00:26.8]} 36. Rd6 {[%clk 0:00:19.4]} 36...
b5 {[%clk 0:00:24.5]} 37. axb5 {[%clk 0:00:20.3]} 37... axb5 {[%clk 0:00:24.8]}
38. Ng3 {[%clk 0:00:20.6]} 38... Rh4 {[%clk 0:00:22.8]} 39. b4 {[%clk
0:00:15.7]} 39... Na4 {[%clk 0:00:19.8]} 40. Nxa4 {[%clk 0:00:15.3]} 40... bxa4
{[%clk 0:00:20.3]} 41. Rf3 {[%clk 0:00:14.7]} 41... Rxb4 {[%clk 0:00:19.6]} 42.
Ra6 {[%clk 0:00:15]} 42... Nd5 {[%clk 0:00:16.6]} 43. f5 {[%clk 0:00:13.9]}
43... gxf5 {[%clk 0:00:15.5]} 44. Ra3 {[%clk 0:00:12.9]} 44... Rhc4 {[%clk
0:00:14]} 45. Ra2 {[%clk 0:00:12]} 45... Nc3 {[%clk 0:00:12.1]} 46. Ra3 {[%clk
0:00:11.5]} 46... Rb2 {[%clk 0:00:12.4]} 47. Kf3 {[%clk 0:00:11.2]} 47... Rxc2
{[%clk 0:00:11.6]} 48. Nh5+ {[%clk 0:00:11.5]} 48... Kh6 {[%clk 0:00:11]} 49.
Nf6 {[%clk 0:00:11.5]} 49... Kg6 {[%clk 0:00:09.7]} 50. Nd7 {[%clk 0:00:12]}
50... Kg5 {[%clk 0:00:08.1]} 51. Ne5 {[%clk 0:00:11.9]} 51... Rf4+ {[%clk
0:00:08]} 52. Ke3 {[%clk 0:00:12]} 52... Re2+ {[%clk 0:00:05.6]} 53. Kd3 {[%clk
0:00:12.6]} 53... Rxe5 {[%clk 0:00:05.9]} 54. Kxc3 {[%clk 0:00:13.1]} 54... Rf3+
{[%clk 0:00:05.8]} 55. Kd2 {[%clk 0:00:13.1]} 55... Rxa3 {[%clk 0:00:05.5]} 0-1

[Event "*** Titled Tuesday Blitz"]
[Site "Chess.com"]
[Date "2020.10.20"]
[Round "2"]
[White "RestartingChess"]
[Black "Shield12"]
[Result "0-1"]
[WhiteElo "2521"]
[BlackElo "2821"]
[TimeControl "180+1"]
[EndTime "10:18:52 PDT"]
[Termination "Shield12 won by checkmate"]

1. e4 {[%clk 0:03:00.9]} 1... c5 {[%clk 0:03:00.3]} 2. Nf3 {[%clk 0:03:01.2]}
2... Nc6 {[%clk 0:03:00.9]} 3. b4 {[%clk 0:03:01.6]} 3... cxb4 {[%clk
0:02:57.9]} 4. d4 {[%clk 0:03:01.9]} 4... d6 {[%clk 0:02:55.4]} 5. d5 {[%clk
0:03:00.6]} 5... Ne5 {[%clk 0:02:53.7]} 6. Nxe5 {[%clk 0:03:00.5]} 6... dxe5
{[%clk 0:02:54.6]} 7. Bb2 {[%clk 0:03:00.1]} 7... Nf6 {[%clk 0:02:53.1]} 8. Nd2
{[%clk 0:02:59.8]} 8... e6 {[%clk 0:02:52.5]} 9. dxe6 {[%clk 0:02:58.4]} 9...
Bxe6 {[%clk 0:02:52.3]} 10. Bxe5 {[%clk 0:02:58.9]} 10... Bc5 {[%clk 0:02:52]}
11. Bb5+ {[%clk 0:02:58.5]} 11... Nd7 {[%clk 0:02:49.9]} 12. Nb3 {[%clk
0:02:48.6]} 12... Bb6 {[%clk 0:02:14.9]} 13. Bd6 {[%clk 0:02:40.4]} 13... Qg5
{[%clk 0:02:13.3]} 14. Qd3 {[%clk 0:02:17.5]} 14... O-O-O {[%clk 0:01:57.3]} 15.
f4 {[%clk 0:01:42.7]} 15... Qf6 {[%clk 0:01:36.8]} 16. O-O-O {[%clk 0:00:59.2]}
16... Nc5 {[%clk 0:01:34.8]} 17. Nxc5 {[%clk 0:00:52.2]} 17... Bxc5 {[%clk
0:01:35]} 18. e5 {[%clk 0:00:34]} 18... Qxf4+ {[%clk 0:01:34.6]} 19. Kb1 {[%clk
0:00:34.4]} 19... Bxd6 {[%clk 0:01:29.6]} 20. exd6 {[%clk 0:00:35.3]} 20... Kb8
{[%clk 0:01:27.3]} 21. Rhf1 {[%clk 0:00:31.1]} 21... Qg5 {[%clk 0:01:26.9]} 22.
d7 {[%clk 0:00:26.6]} 22... Qc5 {[%clk 0:01:17.5]} 23. Ba4 {[%clk 0:00:23.6]}
23... Ka8 {[%clk 0:01:13.4]} 24. Rf4 {[%clk 0:00:12.5]} 24... a6 {[%clk
0:01:02.2]} 25. Rd4 {[%clk 0:00:12.8]} 25... Bf5 {[%clk 0:00:51.1]} 26. Qf3
{[%clk 0:00:11.9]} 26... Be6 {[%clk 0:00:44.2]} 27. Rd6 {[%clk 0:00:11.6]} 27...
Ka7 {[%clk 0:00:40.1]} 28. Qd3 {[%clk 0:00:10.1]} 28... h5 {[%clk 0:00:35.3]}
29. Bb3 {[%clk 0:00:10.6]} 29... Rh6 {[%clk 0:00:30.8]} 30. Bxe6 {[%clk
0:00:05.2]} 30... Rxe6 {[%clk 0:00:31.7]} 31. Rxe6 {[%clk 0:00:05.9]} 31... fxe6
{[%clk 0:00:32.6]} 32. Qg6 {[%clk 0:00:05]} 32... Qf5 {[%clk 0:00:24.1]} 33.
Qxg7 {[%clk 0:00:04.3]} 33... Qg4 {[%clk 0:00:19]} 34. Qd4+ {[%clk 0:00:02]}
34... Qxd4 {[%clk 0:00:17.4]} 35. Rxd4 {[%clk 0:00:02.9]} 35... a5 {[%clk
0:00:14.9]} 36. Rd6 {[%clk 0:00:03.3]} 36... Kb8 {[%clk 0:00:14]} 37. Kb2 {[%clk
0:00:03.3]} 37... Kc7 {[%clk 0:00:14.1]} 38. Rxe6 {[%clk 0:00:03.9]} 38... Rxd7
{[%clk 0:00:14.4]} 39. Rh6 {[%clk 0:00:04.8]} 39... Rd5 {[%clk 0:00:13.6]} 40.
h3 {[%clk 0:00:04.8]} 40... Rg5 {[%clk 0:00:13.4]} 41. Rh7+ {[%clk 0:00:03.5]}
41... Kc6 {[%clk 0:00:13.3]} 42. Rh6+ {[%clk 0:00:04.4]} 42... Kb5 {[%clk
0:00:12.7]} 43. a3 {[%clk 0:00:04.5]} 43... bxa3+ {[%clk 0:00:11.5]} 44. Kxa3
{[%clk 0:00:05.4]} 44... Kc4 {[%clk 0:00:09.5]} 45. Kb2 {[%clk 0:00:04.4]} 45...
b5 {[%clk 0:00:09.2]} 46. Rc6+ {[%clk 0:00:04.5]} 46... Kb4 {[%clk 0:00:09]} 47.
Rh6 {[%clk 0:00:05.4]} 47... a4 {[%clk 0:00:08.5]} 48. Rh8 {[%clk 0:00:06.3]}
48... a3+ {[%clk 0:00:06.1]} 49. Ka2 {[%clk 0:00:06.9]} 49... Rxg2 {[%clk
0:00:06.3]} 50. Rxh5 {[%clk 0:00:07.3]} 50... Rxc2+ {[%clk 0:00:06.5]} 51. Kb1
{[%clk 0:00:08.2]} 51... Rh2 {[%clk 0:00:07]} 52. h4 {[%clk 0:00:07.2]} 52...
Ka4 {[%clk 0:00:05.9]} 53. Rh8 {[%clk 0:00:07.2]} 53... b4 {[%clk 0:00:05.9]}
54. h5 {[%clk 0:00:06.3]} 54... Kb3 {[%clk 0:00:05.6]} 55. Ra8 {[%clk
0:00:07.2]} 55... Rh1# {[%clk 0:00:05.5]} 0-1

[Event "*** Titled Tuesday Blitz"]
[Site "Chess.com"]
[Date "2020.10.20"]
[Round "2"]
[White "Natalya_Buksa"]
[Black "MF1966Idrisov"]
[Result "0-1"]
[WhiteElo "2563"]
[BlackElo "2337"]
[TimeControl "180+1"]
[EndTime "10:18:52 PDT"]
[Termination "MF1966Idrisov won on time"]

1. d4 {[%clk 0:02:56.7]} 1... d6 {[%clk 0:02:59.5]} 2. e4 {[%clk 0:02:54]} 2...
Nf6 {[%clk 0:02:58.7]} 3. Nc3 {[%clk 0:02:54.3]} 3... g6 {[%clk 0:02:59]} 4. Bg5
{[%clk 0:02:54.8]} 4... Bg7 {[%clk 0:02:59.4]} 5. e5 {[%clk 0:02:55.4]} 5...
Nfd7 {[%clk 0:02:55.4]} 6. f4 {[%clk 0:02:53.7]} 6... O-O {[%clk 0:02:54.6]} 7.
h4 {[%clk 0:02:51.9]} 7... c5 {[%clk 0:02:53.4]} 8. exd6 {[%clk 0:02:42.2]} 8...
f6 {[%clk 0:02:52.3]} 9. h5 {[%clk 0:02:36.9]} 9... fxg5 {[%clk 0:02:52.2]} 10.
hxg6 {[%clk 0:02:36.9]} 10... e6 {[%clk 0:02:23.5]} 11. Bc4 {[%clk 0:02:35.3]}
11... Nb6 {[%clk 0:02:22.1]} 12. Bd3 {[%clk 0:02:26.6]} 12... cxd4 {[%clk
0:02:06.5]} 13. Ne4 {[%clk 0:02:23.6]} 13... Rxf4 {[%clk 0:01:59.9]} 14. Rxh7
{[%clk 0:02:23.7]} 14... Nd5 {[%clk 0:01:39.2]} 15. Qh5 {[%clk 0:02:10]} 15...
Rxe4+ {[%clk 0:01:33.2]} 16. Bxe4 {[%clk 0:02:06.4]} 16... Nf6 {[%clk
0:01:32.8]} 17. Qxg5 {[%clk 0:02:02.4]} 17... Nc6 {[%clk 0:01:27.2]} 18. Bxc6
{[%clk 0:01:41.4]} 18... bxc6 {[%clk 0:01:26.7]} 19. Nf3 {[%clk 0:01:41.4]}
19... Bd7 {[%clk 0:01:10.1]} 20. O-O-O {[%clk 0:01:40.9]} 20... Nxh7 {[%clk
0:01:07.9]} 21. gxh7+ {[%clk 0:01:40.6]} 21... Kxh7 {[%clk 0:01:03]} 22. Qh5+
{[%clk 0:01:31.5]} 22... Kg8 {[%clk 0:01:03]} 23. Ng5 {[%clk 0:01:29.6]} 23...
Qf6 {[%clk 0:00:59.3]} 24. Qh7+ {[%clk 0:01:21.8]} 24... Kf8 {[%clk 0:00:58.5]}
25. Qh5 {[%clk 0:00:54.9]} 25... Bh6 {[%clk 0:00:54.6]} 26. Kb1 {[%clk
0:00:54.9]} 26... Bxg5 {[%clk 0:00:52.5]} 27. a4 {[%clk 0:00:51.8]} 27... Be8
{[%clk 0:00:49]} 28. Qe2 {[%clk 0:00:47.7]} 28... Bf7 {[%clk 0:00:46.5]} 29. Rf1
{[%clk 0:00:47.3]} 29... Qg6 {[%clk 0:00:44.9]} 30. Qf3 {[%clk 0:00:41.9]} 30...
Rd8 {[%clk 0:00:35.5]} 31. Qxc6 {[%clk 0:00:40.2]} 31... d3 {[%clk 0:00:34.9]}
32. c3 {[%clk 0:00:27.9]} 32... d2+ {[%clk 0:00:32.3]} 33. Ka1 {[%clk
0:00:28.3]} 33... Qh5 {[%clk 0:00:29]} 34. g4 {[%clk 0:00:25.4]} 34... Qxg4
{[%clk 0:00:24.7]} 35. Ka2 {[%clk 0:00:05.9]} 35... d1=Q {[%clk 0:00:23.6]} 36.
Rxd1 {[%clk 0:00:06.3]} 36... Qxd1 {[%clk 0:00:22.2]} 37. d7 {[%clk 0:00:07.2]}
37... Qxd7 {[%clk 0:00:21.8]} 38. Qc5+ {[%clk 0:00:07]} 38... Qe7 {[%clk
0:00:19.7]} 39. Qe5 {[%clk 0:00:06.2]} 39... Bf6 {[%clk 0:00:18.9]} 40. Qe3
{[%clk 0:00:05.6]} 40... e5+ {[%clk 0:00:19.2]} 41. b3 {[%clk 0:00:05.6]} 41...
e4 {[%clk 0:00:19.3]} 42. Qh6+ {[%clk 0:00:05.9]} 42... Ke8 {[%clk 0:00:18.7]}
43. Qe3 {[%clk 0:00:05.5]} 43... Rd3 {[%clk 0:00:18]} 44. Qf4 {[%clk 0:00:04.2]}
44... Rxc3 {[%clk 0:00:15.7]} 45. Qb8+ {[%clk 0:00:04.6]} 45... Kd7 {[%clk
0:00:15.7]} 46. Qb5+ {[%clk 0:00:04.5]} 46... Ke6 {[%clk 0:00:15.1]} 47. Qa6+
{[%clk 0:00:03.4]} 47... Kf5 {[%clk 0:00:15.1]} 48. Qf1+ {[%clk 0:00:03]} 48...
Rf3 {[%clk 0:00:11.8]} 49. Qg2 {[%clk 0:00:02.5]} 49... Qe6 {[%clk 0:00:11.7]}
50. Qc2 {[%clk 0:00:01.4]} 50... Qxb3+ {[%clk 0:00:11.5]} 51. Qxb3 {[%clk
0:00:01.8]} 51... Rxb3 {[%clk 0:00:11.5]} 0-1

[Event "*** Titled Tuesday Blitz"]
[Site "Chess.com"]
[Date "2020.10.20"]
[Round "2"]
[White "Piotrek1979"]
[Black "lelya96"]
[Result "1-0"]
[WhiteElo "2421"]
[BlackElo "2180"]
[TimeControl "180+1"]
[EndTime "10:18:53 PDT"]
[Termination "Piotrek1979 won by checkmate"]

1. Nf3 {[%clk 0:03:00.9]} 1... d5 {[%clk 0:02:56.7]} 2. g3 {[%clk 0:03:01.8]}
2... c6 {[%clk 0:02:56]} 3. Bg2 {[%clk 0:02:56.1]} 3... Bg4 {[%clk 0:02:56.1]}
4. O-O {[%clk 0:02:54.7]} 4... Nf6 {[%clk 0:02:55.6]} 5. b3 {[%clk 0:02:53.6]}
5... e6 {[%clk 0:02:54.4]} 6. Bb2 {[%clk 0:02:53.5]} 6... Be7 {[%clk 0:02:54.6]}
7. c4 {[%clk 0:02:53.5]} 7... O-O {[%clk 0:02:54.1]} 8. d3 {[%clk 0:02:53.5]}
8... Nbd7 {[%clk 0:02:53.6]} 9. Nbd2 {[%clk 0:02:53.3]} 9... Qc7 {[%clk
0:02:53.1]} 10. Rc1 {[%clk 0:02:45.4]} 10... Rac8 {[%clk 0:02:51.9]} 11. Rc2
{[%clk 0:02:43.7]} 11... Rfd8 {[%clk 0:02:47.4]} 12. Qa1 {[%clk 0:02:42.6]}
12... Bf8 {[%clk 0:02:35]} 13. a3 {[%clk 0:02:40.8]} 13... Qb8 {[%clk
0:02:34.2]} 14. b4 {[%clk 0:02:39.7]} 14... a5 {[%clk 0:02:31.2]} 15. bxa5
{[%clk 0:02:14.8]} 15... Qa7 {[%clk 0:02:28.4]} 16. Bc3 {[%clk 0:02:13.1]} 16...
c5 {[%clk 0:01:52.8]} 17. Nb3 {[%clk 0:02:05.5]} 17... d4 {[%clk 0:01:52]} 18.
Bd2 {[%clk 0:02:03.6]} 18... e5 {[%clk 0:01:50.5]} 19. h3 {[%clk 0:01:58.9]}
19... Bh5 {[%clk 0:01:47.9]} 20. g4 {[%clk 0:01:58.5]} 20... Bg6 {[%clk
0:01:47.4]} 21. Nh4 {[%clk 0:01:58.6]} 21... Qa6 {[%clk 0:01:34.1]} 22. Nxg6
{[%clk 0:01:56.3]} 22... hxg6 {[%clk 0:01:31.8]} 23. e3 {[%clk 0:01:51.4]} 23...
Qe6 {[%clk 0:01:30.4]} 24. Qd1 {[%clk 0:01:32.7]} 24... Nb8 {[%clk 0:01:11.9]}
25. Bxb7 {[%clk 0:01:26.6]} 25... Rc7 {[%clk 0:01:07.5]} 26. Bg2 {[%clk
0:01:23.2]} 26... Nc6 {[%clk 0:00:59.6]} 27. g5 {[%clk 0:01:14.9]} 27... Nh7
{[%clk 0:00:49.9]} 28. e4 {[%clk 0:00:56.5]} 28... Be7 {[%clk 0:00:46.1]} 29. f4
{[%clk 0:00:49.4]} 29... exf4 {[%clk 0:00:44.4]} 30. Bxf4 {[%clk 0:00:48.6]}
30... Ra7 {[%clk 0:00:41.2]} 31. h4 {[%clk 0:00:45.5]} 31... Nxa5 {[%clk
0:00:40.2]} 32. Nxa5 {[%clk 0:00:42.6]} 32... Rxa5 {[%clk 0:00:41.1]} 33. Bc7
{[%clk 0:00:40.4]} 33... Rxa3 {[%clk 0:00:38.5]} 34. Bxd8 {[%clk 0:00:39.6]}
34... Bxd8 {[%clk 0:00:39.4]} 35. e5 {[%clk 0:00:30.3]} 35... Qxe5 {[%clk
0:00:26]} 36. Re2 {[%clk 0:00:28.9]} 36... Qd6 {[%clk 0:00:25.5]} 37. Re8+
{[%clk 0:00:27.5]} 37... Nf8 {[%clk 0:00:24.6]} 38. Qf3 {[%clk 0:00:27]} 38...
Ra7 {[%clk 0:00:21.8]} 39. Qd5 {[%clk 0:00:25.4]} 39... Qxd5 {[%clk 0:00:16.7]}
40. Bxd5 {[%clk 0:00:24.8]} 40... Ba5 {[%clk 0:00:15.6]} 41. Ra1 {[%clk
0:00:16.5]} 41... Bb6 {[%clk 0:00:08.4]} 42. Rxa7 {[%clk 0:00:17.3]} 42... Bxa7
{[%clk 0:00:09.3]} 43. Re7 {[%clk 0:00:17.6]} 43... Bb6 {[%clk 0:00:09.1]} 44.
Rxf7 {[%clk 0:00:15.6]} 44... Ba5 {[%clk 0:00:07.1]} 45. Rf5+ {[%clk 0:00:14]}
45... Kh7 {[%clk 0:00:06]} 46. Rxf8 {[%clk 0:00:13.7]} 46... Bd2 {[%clk
0:00:06.9]} 47. Kg2 {[%clk 0:00:11.1]} 47... Be3 {[%clk 0:00:07]} 48. Bg8+
{[%clk 0:00:10.8]} 48... Kh8 {[%clk 0:00:06.6]} 49. Bf7+ {[%clk 0:00:09.5]}
49... Kh7 {[%clk 0:00:06.9]} 50. Kf3 {[%clk 0:00:09.4]} 50... Bg1 {[%clk
0:00:06.2]} 51. Kg4 {[%clk 0:00:09.4]} 51... Be3 {[%clk 0:00:05.2]} 52. Bxg6+
{[%clk 0:00:09.6]} 52... Kxg6 {[%clk 0:00:04.8]} 53. h5+ {[%clk 0:00:10.5]}
53... Kh7 {[%clk 0:00:05.1]} 54. g6+ {[%clk 0:00:11.4]} 54... Kh6 {[%clk
0:00:05.3]} 55. Rh8# {[%clk 0:00:12.3]} 1-0